bitfinex/quotes_BTCUSD_20250313
["timestamp","ask_amount","ask_price","bid_price","bid_amount"]
[1741880055309,0.0332,81606.0,81605.0,0.1031691]
[1741880055512,0.0332,81606.0,81605.0,0.1154231]
[1741880056046,0.0332,81606.0,81605.0,0.23512409]
[1741880057046,0.0332,81606.0,81605.0,1.73512409]
[1741880058053,0.045454,81606.0,81605.0,0.1031691]
[1741880058271,0.0332,81606.0,81605.0,0.1031691]
[1741880058707,0.06465011,81606.0,81605.0,0.1031691]
[1741880059273,0.48556716,81606.0,81605.0,0.1031691]
[1741880059458,0.4843511,81606.0,81605.0,0.1031691]
[1741880059656,0.37406939,81606.0,81605.0,0.1031691]
[1741880059859,0.49377038,81606.0,81605.0,0.1031691]
[1741880060191,0.49377038,81606.0,81605.0,0.1001691]
[1741880060401,0.49577038,81606.0,81605.0,0.1001691]
[1741880060605,0.49677038,81606.0,81605.0,0.1001691]
[1741880060824,0.37706939,81606.0,81605.0,0.1001691]
[1741880061026,0.36565011,81606.0,81605.0,0.1001691]
[1741880061427,0.36965011,81606.0,81605.0,0.1001691]
[1741880061819,0.61073011,81606.0,81605.0,0.1001691]
[1741880062006,0.05339611,81606.0,81605.0,0.1001691]
[1741880062230,0.05639611,81606.0,81605.0,0.1001691]
[1741880062429,0.05539611,81606.0,81605.0,0.1001691]
[1741880062593,0.05539611,81606.0,81605.0,0.1124231]
[1741880062798,0.0402,81606.0,81605.0,0.1001691]
[1741880063109,0.048454,81606.0,81605.0,0.1001691]
[1741880063306,0.045454,81606.0,81605.0,0.1001691]
[1741880063697,0.046454,81606.0,81605.0,0.1001691]
[1741880064125,0.54845499,81606.0,81605.0,0.1001691]
[1741880064424,0.54945499,81606.0,81605.0,0.1001691]
[1741880065035,0.54945499,81606.0,81605.0,0.1011691]
[1741880065238,0.54845499,81606.0,81605.0,0.1001691]
[1741880065861,0.55045499,81606.0,81605.0,0.1001691]
[1741880066733,0.55345499,81606.0,81605.0,0.1001691]
[1741880067476,0.57265492,81606.0,81605.0,0.1001691]
[1741880067930,0.245194,81569.0,81562.0,0.2453803]
[1741880068125,0.257469,81563.0,81562.0,0.0001693]
[1741880069211,0.57667573,81563.0,81562.0,0.0001693]
[1741880070274,0.58894704,81563.0,81562.0,0.0001693]
[1741880070452,0.33147804,81563.0,81562.0,0.0001693]
[1741880070773,0.34373804,81563.0,81562.0,0.0001693]
[1741880071624,0.03147804,81563.0,81562.0,0.0124293]
[1741880071828,0.01920673,81563.0,81562.0,0.25865635]
[1741880072049,0.01920673,81563.0,81562.0,0.25743029]
[1741880072404,0.01920673,81563.0,81562.0,0.18033029]
[1741880072602,0.01920673,81563.0,81562.0,0.17933029]
[1741880072805,0.01920673,81563.0,81562.0,0.18355625]
[1741880073005,0.01920673,81563.0,81562.0,0.18233029]
[1741880073206,0.01920673,81563.0,81562.0,0.17933029]
[1741880073590,0.03146673,81563.0,81562.0,0.0041693]
[1741880073798,0.01226,81563.0,81562.0,0.0041693]
[1741880074376,0.01226,81563.0,81562.0,0.0051693]
[1741880074583,0.01226,81563.0,81562.0,0.0011693]
[1741880075022,0.257466,81564.0,81562.0,0.0061693]
[1741880075263,0.3,81567.0,81562.0,0.0124293]
[1741880075432,0.257468,81564.0,81562.0,0.0001693]
[1741880075642,0.257468,81564.0,81562.0,0.0031693]
[1741880075846,0.01226,81564.0,81562.0,0.0031693]
[1741880076048,0.01226,81563.0,81562.0,0.0001693]
[1741880076510,0.01226,81563.0,81562.0,0.0041693]
[1741880076709,0.257465,81565.0,81562.0,0.0041693]
[1741880076990,0.01920699,81564.0,81562.0,0.0041693]
[1741880077190,0.26441499,81564.0,81562.0,0.0041693]
[1741880077694,0.01920699,81564.0,81563.0,0.01226]
[1741880078043,0.245174,81575.0,81568.0,0.257451]
[1741880078246,0.257439,81573.0,81568.0,0.257451]
[1741880078475,0.012259,81572.0,81566.0,0.245198]
[1741880078848,0.03146365,81575.0,81570.0,0.245187]
[1741880079080,0.245181,81573.0,81566.0,0.257457]
[1741880079283,0.01920565,81575.0,81566.0,0.257457]
[1741880079284,0.24519,81570.0,81566.0,0.11970099]
[1741880079508,0.012259,81572.0,81567.0,0.012259]
[1741880079678,0.257443,81572.0,81566.0,0.36489899]
[1741880079881,0.257443,81572.0,81567.0,0.012259]
[1741880080180,0.012259,81567.0,81563.0,0.002]
[1741880080410,0.257447,81570.0,81563.0,0.002]
[1741880080411,0.012259,81570.0,81564.0,0.01226]
[1741880081039,0.257445,81571.0,81566.0,0.257457]
[1741880081241,0.24519,81570.0,81566.0,0.01226]
[1741880081417,0.001,81572.0,81571.0,0.012259]
[1741880081622,0.25769012,81578.0,81572.0,0.257441]
[1741880081952,0.257429,81576.0,81570.0,0.245186]
[1741880082140,0.03146365,81575.0,81569.0,0.257448]
[1741880082354,0.03146365,81575.0,81570.0,0.245185]
[1741880082569,0.01920565,81575.0,81572.0,0.245181]
[1741880082788,0.0806,81602.0,81592.0,0.245122]
[1741880082978,0.245101,81599.0,81593.0,0.012255]
[1741880083179,0.245106,81598.0,81593.0,0.257373]
[1741880083336,0.012255,81595.0,81590.0,0.012256]
[1741880083548,0.257376,81593.0,81588.0,0.245134]
[1741880083756,0.012257,81584.0,81576.0,0.245168]
[1741880083957,0.257406,81583.0,81577.0,0.257422]
[1741880084352,0.257406,81583.0,81578.0,0.245161]
[1741880084557,0.012257,81585.0,81579.0,1.512258]
[1741880084777,0.012257,81585.0,81580.0,0.245156]
[1741880084982,0.257401,81585.0,81580.0,0.245156]
[1741880085362,0.012255,81598.0,81589.0,0.012256]
[1741880085571,0.257365,81596.0,81589.0,0.012256]
[1741880085796,0.245116,81594.0,81579.0,1.503]
[1741880085999,0.012257,81580.0,81579.0,1.501]
[1741880086201,0.012257,81580.0,81579.0,0.001]
[1741880086405,0.312257,81580.0,81579.0,0.001]
[1741880086787,0.012259,81567.0,81562.0,0.0001693]
[1741880087107,0.257466,81564.0,81562.0,0.0001693]
[1741880087315,0.2452,81566.0,81562.0,0.0001693]
[1741880087486,0.25746,81566.0,81562.0,0.0001693]
[1741880088128,0.257465,81565.0,81562.0,0.0011693]
[1741880088554,0.257465,81565.0,81562.0,0.0021693]
[1741880088910,0.257465,81565.0,81562.0,0.0041693]
[1741880088911,0.257469,81563.0,81562.0,0.0041693]
[1741880089832,0.01920546,81568.0,81562.0,0.0041693]
[1741880090035,0.01920546,81568.0,81566.0,0.257457]
[1741880090430,0.01920546,81568.0,81567.0,0.012259]
[1741880090578,0.01920546,81568.0,81566.0,0.257457]
[1741880091003,0.0315836,81568.0,81566.0,0.257457]
[1741880091206,0.012259,81567.0,81566.0,0.001]
[1741880091426,0.012259,81567.0,81566.0,0.003]
[1741880092360,0.0315836,81568.0,81567.0,0.012259]
[1741880092693,0.0438426,81568.0,81566.0,0.003]
[1741880092912,0.012259,81567.0,81566.0,0.003]
[1741880093115,0.012259,81567.0,81566.0,0.002]
[1741880093294,0.012259,81567.0,81566.0,0.003]
[1741880093741,0.012259,81567.0,81566.0,0.001]
[1741880094592,0.012259,81567.0,81566.0,0.003]
[1741880095428,0.012259,81567.0,81566.0,0.001]
[1741880095633,0.012259,81567.0,81566.0,0.003]
[1741880096078,0.012259,81567.0,81566.0,0.002]
[1741880096401,0.03146425,81567.0,81566.0,0.003]
[1741880096708,0.01920525,81567.0,81566.0,0.003]
[1741880097125,0.01920525,81567.0,81566.0,0.2482]
[1741880097334,0.01920525,81567.0,81566.0,0.003]
[1741880097697,0.03146425,81567.0,81566.0,0.003]
[1741880097996,0.33268031,81567.0,81566.0,0.003]
[1741880098189,0.41416425,81567.0,81566.0,0.003]
[1741880098401,0.53386524,81567.0,81566.0,0.003]
[1741880098548,0.53386524,81567.0,81562.0,0.0001693]
[1741880098549,0.557469,81563.0,81562.0,0.0001693]
[1741880098748,0.67716999,81563.0,81562.0,0.0001693]
[1741880100006,0.68016999,81563.0,81562.0,0.0001693]
[1741880100212,0.303,81563.0,81562.0,0.0001693]
[1741880100447,0.31526,81563.0,81562.0,0.0001693]
[1741880100856,0.303,81563.0,81562.0,0.0001693]
[1741880101027,0.306,81563.0,81562.0,0.0001693]
[1741880101270,0.51486099,81563.0,81562.0,0.0001693]
[1741880101854,0.56196099,81563.0,81562.0,0.0001693]
[1741880104341,0.57650184,81563.0,81562.0,3e-07]
[1741880104748,0.56196099,81563.0,81562.0,3e-07]
[1741880105793,0.31826,81563.0,81562.0,3e-07]
[1741880106967,0.43796099,81563.0,81562.0,3e-07]
[1741880107189,0.45717099,81563.0,81562.0,3e-07]
[1741880107398,0.45717099,81563.0,81561.0,6e-07]
[1741880107399,0.57201285,81562.0,81561.0,6e-07]
[1741880107735,0.77311384,81562.0,81561.0,6e-07]
[1741880107893,0.81931384,81562.0,81561.0,6e-07]
[1741880108665,0.81931384,81562.0,81551.0,1e-06]
[1741880108666,0.557504,81552.0,81551.0,1e-06]
[1741880108866,0.91940584,81552.0,81551.0,1e-06]
[1741880109230,0.57206985,81544.0,81543.0,0.00325057]
[1741880109429,0.81277084,81544.0,81543.0,0.00325057]
[1741880109654,0.96513084,81544.0,81543.0,0.00325057]
[1741880109997,0.75252999,81544.0,81543.0,0.00325057]
[1741880110201,0.91943084,81544.0,81543.0,0.00325057]
[1741880110340,0.91943084,81544.0,81543.0,0.00341977]
[1741880111340,0.93352842,81544.0,81543.0,7.7e-07]
[1741880111744,0.63427,81531.0,81530.0,0.00328]
[1741880111945,0.92087184,81531.0,81530.0,0.00328]
[1741880112584,0.78772965,81531.0,81530.0,0.00328]
[1741880112900,0.94312965,81531.0,81530.0,0.00328]
[1741880113134,0.79072965,81531.0,81530.0,0.00328]
[1741880113251,0.78772965,81531.0,81530.0,0.00328]
[1741880113459,0.94312965,81531.0,81530.0,0.00328]
[1741880113655,0.94312965,81531.0,81500.0,1.448396]
[1741880113656,0.257645,81507.0,81506.0,0.31280018]
[1741880113944,0.557645,81507.0,81506.0,0.31280018]
[1741880114856,0.557645,81507.0,81506.0,1.81280018]
[1741880115061,0.3,81507.0,81506.0,1.81280018]
[1741880115177,0.31218802,81507.0,81506.0,1.81280018]
[1741880115381,0.01218802,81507.0,81506.0,2.07044918]
[1741880115588,0.164666,81521.0,81511.0,0.012268]
[1741880115589,0.3,81515.0,81511.0,0.012268]
[1741880115808,0.012267,81513.0,81506.0,1.81280018]
[1741880116015,0.245374,81508.0,81506.0,0.31280018]
[1741880116222,0.3,81510.0,81506.0,0.31280018]
[1741880116584,0.012268,81507.0,81506.0,0.31280018]
[1741880117535,0.257645,81507.0,81506.0,1.81280018]
[1741880117908,0.557645,81507.0,81506.0,1.81280018]
[1741880118310,0.558645,81507.0,81506.0,1.81280018]
[1741880118504,0.558645,81507.0,81506.0,1.8e-07]
[1741880118505,0.8157941,81507.0,81506.0,1.8e-07]
[1741880118728,0.77576793,81507.0,81506.0,1.8e-07]
[1741880118968,0.77476793,81507.0,81506.0,1.8e-07]
[1741880119103,0.79030878,81507.0,81506.0,1.8e-07]
[1741880119309,0.92820793,81507.0,81506.0,1.8e-07]
[1741880119510,0.32022194,81507.0,81506.0,1.8e-07]
[1741880119873,0.45219093,81507.0,81506.0,1.8e-07]
[1741880120241,0.49657219,81507.0,81506.0,1.8e-07]
[1741880120441,0.58297219,81507.0,81506.0,1.8e-07]
[1741880120648,0.61171328,81507.0,81506.0,1.8e-07]
[1741880120853,0.557664,81501.0,81500.0,1.20296018]
[1741880121067,0.72446943,81501.0,81500.0,1.20296018]
[1741880121273,1.07781141,81501.0,81500.0,0.52888539]
[1741880121451,1.00177141,81501.0,81500.0,0.07630594]
[1741880121658,0.88181052,81501.0,81500.0,0.03940341]
[1741880121855,0.005,81494.0,81481.0,0.001]
[1741880122055,0.312272,81481.0,81471.0,0.0008]
[1741880122326,0.41970099,81481.0,81471.0,0.0008]
[1741880122461,0.3,81481.0,81473.0,0.012274]
[1741880122660,0.3,81481.0,81474.0,0.245476]
[1741880123001,0.3,81481.0,81477.0,0.245466]
[1741880123238,0.55920855,81490.0,81477.0,0.245466]
[1741880123239,0.012272,81486.0,81477.0,0.245466]
[1741880123399,0.012272,81486.0,81473.0,0.012274]
[1741880123400,0.3,81484.0,81473.0,0.012274]
[1741880123583,0.3,81484.0,81475.0,0.012273]
[1741880123809,0.3,81484.0,81474.0,0.012273]
[1741880124131,0.3,81484.0,81473.0,0.257753]
[1741880124132,0.55772,81484.0,81473.0,0.257753]
[1741880124297,0.312272,81482.0,81481.0,1.5]
[1741880124492,0.43197299,81482.0,81481.0,1.5]
[1741880124841,0.43197299,81482.0,81481.0,1.499]
[1741880125056,0.43197299,81482.0,81481.0,1.497]
[1741880125243,0.012274,81472.0,81471.0,0.0008]
[1741880125416,0.55897306,81472.0,81471.0,0.0008]
[1741880125598,0.557757,81472.0,81471.0,0.0008]
[1741880126008,0.82993799,81472.0,81471.0,0.0006852]
[1741880126286,0.69199884,81472.0,81471.0,0.0006852]
[1741880126495,0.84451884,81472.0,81471.0,0.0006852]
[1741880126689,0.69499884,81472.0,81471.0,0.0006852]
[1741880126893,0.85956019,81472.0,81471.0,0.0006852]
[1741880127042,0.7263119,81472.0,81471.0,0.0006852]
[1741880127247,0.257782,81464.0,81463.0,8e-05]
[1741880127449,0.69202384,81464.0,81463.0,8e-05]
[1741880127661,0.557826,81450.0,81449.0,1.5]
[1741880127866,0.41970099,81450.0,81449.0,1.5]
[1741880128172,0.3,81459.0,81454.0,0.012276]
[1741880128512,0.30150855,81460.0,81448.0,0.0001692]
[1741880128513,0.012277,81449.0,81448.0,0.0001692]
[1741880128653,0.67874605,81449.0,81448.0,0.0001692]
[1741880128857,0.67752999,81449.0,81448.0,0.0001692]
[1741880129262,0.69207084,81449.0,81448.0,0.0001692]
[1741880129478,0.257854,81441.0,81440.0,0.00203788]
[1741880129676,0.557883,81432.0,81431.0,0.0008]
[1741880129911,0.41970099,81432.0,81431.0,0.0008]
[1741880130459,0.43198099,81432.0,81431.0,0.0008]
[1741880130657,0.3,81432.0,81431.0,0.0008]
[1741880130882,0.15908,81433.0,81432.0,0.01228]
[1741880131084,0.30150855,81441.0,81440.0,0.012278]
[1741880131298,0.30912716,81449.0,81445.0,0.012278]
[1741880131500,0.005,81441.0,81440.0,0.012278]
[1741880131678,0.012278,81440.0,81431.0,0.01308]
[1741880132008,0.00728806,81439.0,81436.0,0.012279]
[1741880132160,0.00728806,81439.0,81438.0,0.012279]
[1741880132546,0.0222365,81441.0,81440.0,0.012278]
[1741880132789,0.0202365,81441.0,81440.0,0.012278]
[1741880133118,0.02807696,81441.0,81440.0,0.012278]
[1741880133323,0.02807696,81441.0,81440.0,0.011278]
[1741880133526,0.0192365,81441.0,81440.0,0.011278]
[1741880133725,0.3,81449.0,81443.0,0.012278]
[1741880133899,0.3,81449.0,81440.0,0.256854]
[1741880133900,0.257862,81439.0,81428.0,0.01228]
[1741880134110,0.02234881,81441.0,81440.0,0.012278]
[1741880134442,0.02234881,81441.0,81431.0,0.01308]
[1741880134646,0.02234881,81441.0,81431.0,0.0008]
[1741880134647,0.257883,81432.0,81431.0,0.0008]
[1741880135001,0.257883,81432.0,81431.0,0.0028]
[1741880135183,0.01228,81433.0,81431.0,0.0028]
[1741880135383,0.257883,81432.0,81431.0,0.0008]
[1741880135585,0.68213289,81432.0,81431.0,0.0028]
[1741880135843,0.257933,81416.0,81415.0,0.01816298]
[1741880136038,0.37763399,81416.0,81415.0,0.01816298]
[1741880136249,0.38203027,81416.0,81415.0,0.01816298]
[1741880136419,0.39848952,81416.0,81415.0,0.01816298]
[1741880136820,0.50093257,81416.0,81415.0,1e-08]
[1741880137005,0.43932814,81416.0,81415.0,1e-08]
[1741880137201,0.35612814,81416.0,81415.0,1e-08]
[1741880137638,0.367301,81416.0,81415.0,1e-08]
[1741880138043,0.49200199,81416.0,81415.0,1e-08]
[1741880138465,0.257966,81406.0,81400.0,0.0301]
[1741880138636,0.37766699,81406.0,81400.0,0.0301]
[1741880138841,0.38212726,81406.0,81400.0,0.0301]
[1741880139041,0.00446027,81406.0,81405.0,0.01261722]
[1741880139242,0.06255683,81406.0,81405.0,0.01261722]
[1741880139442,0.012279,81435.0,81426.0,0.012281]
[1741880139643,0.00905035,81431.0,81429.0,0.25789]
[1741880139845,0.00905035,81431.0,81430.0,0.01228]
[1741880140126,0.01924002,81433.0,81430.0,1.5]
[1741880140441,0.01228,81431.0,81424.0,0.012281]
[1741880140674,0.01228,81430.0,81415.0,0.012282]
[1741880140997,0.01924002,81433.0,81420.0,0.012281]
[1741880141214,0.01924002,81433.0,81432.0,0.01228]
[1741880141413,0.01924002,81433.0,81432.0,1.5]
[1741880141414,0.03152002,81433.0,81432.0,1.5]
[1741880141570,0.01924002,81433.0,81432.0,1.5]
[1741880142012,0.01924002,81433.0,81432.0,1.499]
[1741880142241,0.01924002,81433.0,81432.0,1.497]
[1741880142719,0.02372074,81433.0,81432.0,1.497]
[1741880143157,0.02372074,81433.0,81432.0,1.50928]
[1741880143355,0.00448072,81433.0,81432.0,1.50928]
[1741880143700,0.012279,81436.0,81432.0,1.497]
[1741880143897,0.25788,81433.0,81432.0,1.497]
[1741880144103,0.26956926,81433.0,81432.0,1.497]
[1741880144536,0.26956926,81433.0,81432.0,1.499]
[1741880144731,0.01168926,81433.0,81432.0,1.499]
[1741880145163,0.02396926,81433.0,81432.0,1.499]
[1741880145365,0.012279,81434.0,81432.0,1.499]
[1741880145730,0.245579,81440.0,81434.0,0.012279]
[1741880145927,0.01243205,81442.0,81440.0,0.012278]
[1741880146458,0.257831,81449.0,81440.0,0.012278]
[1741880146459,0.012277,81448.0,81440.0,0.012278]
[1741880146664,0.257837,81447.0,81440.0,0.012278]
[1741880146859,0.257848,81444.0,81439.0,0.012279]
[1741880147067,0.245554,81449.0,81438.0,0.257864]
[1741880147421,0.30150855,81460.0,81440.0,0.012278]
[1741880147422,0.245527,81458.0,81440.0,0.012278]
[1741880147630,0.01255613,81453.0,81440.0,0.13320678]
[1741880147837,0.01255613,81453.0,81440.0,0.21247899]
[1741880148041,0.01923448,81443.0,81440.0,0.21247899]
[1741880148422,0.001339,81441.0,81435.0,0.012279]
[1741880148627,0.001339,81441.0,81440.0,0.012278]
[1741880148833,0.000339,81441.0,81440.0,0.012278]
[1741880149024,0.000339,81441.0,81439.0,0.24558]
[1741880149228,0.012617,81441.0,81440.0,0.005]
[1741880149607,0.000339,81441.0,81440.0,0.005]
[1741880149807,0.000339,81441.0,81440.0,0.022278]
[1741880150046,0.000339,81441.0,81440.0,0.017278]
[1741880150577,0.000339,81441.0,81440.0,0.020278]
[1741880150776,0.000339,81441.0,81440.0,0.012278]
[1741880150944,0.000339,81441.0,81440.0,0.015278]
[1741880151192,0.000339,81441.0,81440.0,0.18440672]
[1741880151332,0.000339,81441.0,81440.0,0.26157899]
[1741880151531,0.000339,81441.0,81440.0,1.75857899]
[1741880151766,0.000339,81441.0,81440.0,1.76357899]
[1741880152357,0.000339,81441.0,81440.0,1.75757899]
[1741880152557,0.000339,81441.0,81440.0,1.76257899]
[1741880152877,0.000339,81441.0,81440.0,1.76757899]
[1741880153098,0.012617,81441.0,81440.0,1.5572]
[1741880153233,0.000339,81441.0,81440.0,1.51]
[1741880153636,0.000339,81441.0,81440.0,1.505]
[1741880153637,0.258193,81441.0,81440.0,1.505]
[1741880153869,0.258193,81441.0,81440.0,0.005]
[1741880154229,0.25788,81433.0,81432.0,0.0001695]
[1741880154521,0.01228,81433.0,81432.0,0.0001695]
[1741880154731,0.26775519,81433.0,81432.0,0.0001695]
[1741880155071,0.29029824,81433.0,81432.0,0.0001695]
[1741880155271,0.03241824,81433.0,81432.0,0.2580525]
[1741880155694,0.03241824,81433.0,81432.0,0.0001695]
[1741880155895,0.02114228,81433.0,81432.0,0.0001695]
[1741880156098,0.05265918,81433.0,81432.0,0.0031695]
[1741880157011,0.04037918,81433.0,81432.0,0.0031695]
[1741880157212,0.05265918,81433.0,81432.0,0.0031695]
[1741880157839,0.04037918,81433.0,81432.0,0.0061695]
[1741880158012,0.05265918,81433.0,81432.0,0.0061695]
[1741880158820,0.04037918,81433.0,81432.0,0.0061695]
[1741880159027,0.04037918,81433.0,81432.0,0.0184495]
[1741880159228,0.28597918,81433.0,81432.0,0.0061695]
[1741880159451,0.27610399,81433.0,81432.0,0.0061695]
[1741880159651,0.28590314,81433.0,81432.0,0.0061695]
[1741880159853,0.04030314,81433.0,81432.0,0.2640525]
[1741880160374,0.03050399,81433.0,81432.0,0.2640525]
[1741880160668,0.03050399,81433.0,81432.0,0.2610525]
[1741880160946,0.03050399,81433.0,81432.0,0.2590525]
[1741880161313,0.28838399,81433.0,81432.0,0.0011695]
[1741880161519,0.41268749,81433.0,81432.0,0.0011695]
[1741880161719,0.41627531,81433.0,81432.0,0.0011695]
[1741880161923,0.03869432,81433.0,81432.0,0.0011695]
[1741880162070,0.02742723,81433.0,81432.0,0.0011695]
[1741880162266,0.03970723,81433.0,81432.0,0.0011695]
[1741880162717,0.02742723,81433.0,81432.0,0.0011695]
[1741880162917,0.03970723,81433.0,81432.0,0.0001695]
[1741880163317,0.04270723,81433.0,81432.0,0.0001695]
[1741880163643,0.25100014,81433.0,81432.0,0.1001695]
[1741880163838,0.46140822,81433.0,81432.0,0.1011695]
[1741880164049,0.44217132,81433.0,81432.0,5e-07]
[1741880164198,0.012282,81418.0,81402.0,0.0012284]
[1741880164401,0.245671,81410.0,81403.0,0.245689]
[1741880164648,0.012281,81426.0,81419.0,0.245641]
[1741880164851,0.000339,81441.0,81439.0,0.245581]
[1741880165205,0.000339,81441.0,81426.0,0.012281]
[1741880165407,0.000339,81441.0,81438.0,0.012279]
[1741880165631,0.000339,81441.0,81440.0,0.012278]
[1741880165806,0.012279,81438.0,81432.0,0.245602]
[1741880166037,0.245621,81426.0,81411.0,0.245666]
[1741880166240,0.257966,81406.0,81405.0,0.00533322]
[1741880166451,0.61850685,81406.0,81405.0,2.2e-07]
[1741880166653,0.61850685,81406.0,81391.0,0.0008]
[1741880166654,0.012285,81399.0,81398.0,0.00569204]
[1741880167081,0.01593863,81399.0,81398.0,0.00569204]
[1741880167413,0.01593863,81399.0,81391.0,0.0008]
[1741880167414,0.0775,81398.0,81391.0,0.0008]
[1741880167612,0.02837129,81399.0,81392.0,0.245724]
[1741880167844,0.17624442,81406.0,81392.0,0.245724]
[1741880167845,0.00355731,81397.0,81395.0,0.257998]
[1741880168038,0.257978,81402.0,81395.0,0.257998]
[1741880168249,0.258004,81395.0,81391.0,0.0008]
[1741880168432,0.012286,81392.0,81391.0,0.0008]
[1741880168637,0.13198699,81392.0,81391.0,0.0008]
[1741880168763,0.13320305,81392.0,81391.0,0.0008]
[1741880168983,0.012286,81392.0,81391.0,0.0008]
[1741880169654,0.012286,81392.0,81391.0,0.0018]
[1741880170407,0.02354919,81392.0,81391.0,0.0018]
[1741880170609,0.02354919,81392.0,81391.0,0.0008]
[1741880170806,0.14772681,81392.0,81391.0,0.0008]
[1741880171052,0.44894287,81392.0,81391.0,0.0008]
[1741880171254,0.44772681,81392.0,81391.0,0.0008]
[1741880171474,0.69784681,81392.0,81391.0,0.0008]
[1741880171681,0.43646362,81392.0,81391.0,0.0008]
[1741880171837,0.00447663,81392.0,81391.0,0.0008]
[1741880171997,0.26248663,81392.0,81391.0,0.0008]
[1741880172202,0.400188,81392.0,81391.0,0.0028]
[1741880172448,0.70758456,81392.0,81391.0,0.0028]
[1741880173031,0.76822541,81392.0,81391.0,1e-06]
[1741880173345,0.558044,81381.0,81380.0,0.01]
[1741880173575,0.43198799,81381.0,81380.0,0.01]
[1741880174505,0.45444343,81381.0,81380.0,0.01]
[1741880174705,0.46566821,81381.0,81380.0,0.01]
[1741880175850,0.47514832,81381.0,81380.0,0.01]
[1741880176079,0.48433975,81381.0,81380.0,0.00391937]
[1741880176284,0.3,81358.0,81357.0,0.00396043]
[1741880176662,0.00442534,81358.0,81357.0,0.01625143]
[1741880176835,0.00442534,81358.0,81357.0,0.13595242]
[1741880177014,0.30150855,81370.0,81364.0,0.01229]
[1741880177226,0.012289,81369.0,81358.0,0.258118]
[1741880177464,0.00193253,81369.0,81363.0,0.24581]
[1741880177598,0.00193253,81369.0,81365.0,0.258095]
[1741880177799,0.012289,81370.0,81361.0,0.01229]
[1741880178010,0.01229,81365.0,81352.0,0.245922]
[1741880178225,0.558118,81358.0,81352.0,8e-05]
[1741880178430,0.67781899,81358.0,81352.0,8e-05]
[1741880179207,0.67781899,81358.0,81351.0,0.00078043]
[1741880179208,0.312292,81352.0,81351.0,0.00078043]
[1741880179386,0.43199299,81352.0,81351.0,0.00078043]
[1741880179686,0.61393918,81352.0,81351.0,0.00078043]
[1741880180235,0.61393918,81352.0,81342.0,0.00012951]
[1741880180236,0.558165,81343.0,81342.0,0.00012951]
[1741880180443,0.67786599,81343.0,81342.0,0.00012951]
[1741880180570,0.00510356,81343.0,81342.0,0.25829751]
[1741880181094,0.012292,81350.0,81342.0,0.00012951]
[1741880181296,0.32474416,81352.0,81346.0,0.245863]
[1741880181444,0.02323561,81352.0,81345.0,0.012293]
[1741880181770,0.258146,81349.0,81342.0,0.25829451]
[1741880181987,0.258146,81349.0,81342.0,0.00012951]
[1741880181988,0.258165,81344.0,81342.0,0.00012951]
[1741880182186,0.245864,81346.0,81342.0,0.00012951]
[1741880182515,0.002,81343.0,81342.0,0.00012951]
[1741880182848,0.012292,81351.0,81343.0,0.012293]
[1741880183045,0.00179429,81339.0,81335.0,0.245895]
[1741880183271,0.012294,81337.0,81330.0,0.012295]
[1741880183445,0.245887,81338.0,81330.0,0.012295]
[1741880183446,0.012294,81338.0,81330.0,0.258206]
[1741880183647,0.00179429,81339.0,81333.0,0.258194]
[1741880183852,0.00179429,81339.0,81337.0,0.24589]
[1741880184059,0.00179429,81339.0,81338.0,0.012294]
[1741880184808,0.00179429,81339.0,81337.0,0.36559099]
[1741880184809,0.00179429,81339.0,81332.0,0.245904]
[1741880185005,0.00179429,81339.0,81329.0,0.012295]
[1741880185206,0.00179429,81339.0,81336.0,0.012294]
[1741880185407,0.00179429,81339.0,81338.0,0.012294]
[1741880185822,0.24767829,81339.0,81334.0,0.245899]
[1741880186010,0.00179429,81339.0,81336.0,0.012294]
[1741880186242,0.012294,81336.0,81327.0,0.012296]
[1741880186443,0.012294,81336.0,81326.0,0.012296]
[1741880186649,0.245896,81335.0,81332.0,0.0001696]
[1741880186928,0.00179429,81339.0,81338.0,0.012294]
[1741880187154,0.00179429,81339.0,81334.0,0.012294]
[1741880187332,0.00179429,81339.0,81316.0,0.02887773]
[1741880187333,0.012294,81336.0,81316.0,0.02887773]
[1741880187531,0.258197,81333.0,81316.0,0.02887773]
[1741880187858,0.67789799,81333.0,81318.0,0.245947]
[1741880188052,0.67789799,81333.0,81316.0,0.02887773]
[1741880188837,0.558197,81333.0,81316.0,0.27482873]
[1741880189008,0.012294,81335.0,81329.0,0.012295]
[1741880189170,0.2459,81334.0,81327.0,0.245919]
[1741880189373,0.25534948,81336.0,81331.0,0.012295]
[1741880189556,0.001,81333.0,81332.0,0.2582]
[1741880190022,0.001,81333.0,81331.0,0.012295]
[1741880190379,0.001,81333.0,81323.0,0.060896]
[1741880190380,0.012295,81331.0,81323.0,0.060896]
[1741880190508,0.012295,81331.0,81319.0,0.012297]
[1741880190509,0.245947,81319.0,81310.0,0.245969]
[1741880190718,0.245934,81323.0,81313.0,0.258258]
[1741880190922,0.012296,81321.0,81315.0,0.258251]
[1741880191133,0.012297,81317.0,81309.0,0.012298]
[1741880191334,0.258248,81317.0,81307.0,0.245978]
[1741880191535,0.258248,81317.0,81303.0,0.012299]
[1741880191746,0.258248,81317.0,81305.0,0.245984]
[1741880191950,0.258248,81317.0,81298.0,0.00123]
[1741880191951,0.67794899,81317.0,81298.0,0.00123]
[1741880192182,0.558254,81315.0,81298.0,0.00123]
[1741880192436,0.67795499,81315.0,81298.0,0.01353]
[1741880192638,0.012297,81317.0,81310.0,0.258268]
[1741880192949,0.012297,81315.0,81304.0,0.245988]
[1741880193069,0.03156346,81315.0,81304.0,0.245988]
[1741880193276,0.43199799,81315.0,81293.0,0.012301]
[1741880193529,0.43699799,81315.0,81294.0,0.012301]
[1741880194101,0.258305,81300.0,81298.0,0.00056858]
[1741880194299,0.012298,81309.0,81298.0,0.00056858]
[1741880194300,0.11970099,81314.0,81303.0,0.25829]
[1741880194501,0.12349899,81311.0,81300.0,0.0123]
[1741880194705,0.3,81314.0,81309.0,0.245975]
[1741880194927,0.3,81314.0,81308.0,0.012298]
[1741880195108,0.245987,81305.0,81299.0,0.0123]
[1741880195304,0.258293,81303.0,81298.0,0.00056858]